bitfinex/quotes_BTCUSD_20250108
["timestamp","ask_amount","ask_price","bid_price","bid_amount"]
[1736346094094,0.508109,95370.0,95369.0,6.6e-07]
[1736346094290,1.13641876,95370.0,95369.0,2.6e-07]
[1736346095338,0.71303309,95370.0,95369.0,2.6e-07]
[1736346095708,0.71903309,95370.0,95369.0,0.00100026]
[1736346096720,0.92874209,95370.0,95369.0,0.00100026]
[1736346097135,0.93664126,95370.0,95369.0,0.00100026]
[1736346097556,0.99348126,95370.0,95369.0,0.00100026]
[1736346097753,1.02548126,95370.0,95369.0,0.00100026]
[1736346098912,1.34460559,95370.0,95369.0,0.00100026]
[1736346102715,1.34460559,95370.0,95303.0,0.209855]
[1736346102716,0.1,95349.0,95316.0,0.0823]
[1736346102967,0.1,95349.0,95348.0,0.10015266]
[1736346102968,1.27552809,95349.0,95348.0,0.10015266]
[1736346103162,1.27552809,95349.0,95348.0,0.10957446]
[1736346103367,1.27552809,95349.0,95348.0,0.10015266]
[1736346103368,1.59465242,95349.0,95348.0,0.10015266]
[1736346104686,1.51765242,95349.0,95348.0,0.10015266]
[1736346105035,1.30675416,95349.0,95348.0,0.10015266]
[1736346105148,1.33457606,95349.0,95348.0,0.10015266]
[1736346105356,1.33657606,95349.0,95348.0,0.10015266]
[1736346105779,1.32757606,95349.0,95348.0,0.10015266]
[1736346105990,1.35057606,95349.0,95348.0,0.10015266]
[1736346106400,1.35957606,95349.0,95348.0,0.10015266]
[1736346106605,1.69407582,95349.0,95348.0,0.03722466]
[1736346106855,1.63557606,95349.0,95348.0,6.6e-07]
[1736346107059,1.74587606,95349.0,95348.0,6.6e-07]
[1736346107241,1.63557606,95349.0,95348.0,6.6e-07]
[1736346107918,1.63357606,95349.0,95348.0,6.6e-07]
[1736346108114,1.57673606,95349.0,95348.0,6.6e-07]
[1736346108320,1.63757606,95349.0,95348.0,6.6e-07]
[1736346108809,1.42673606,95349.0,95348.0,6.6e-07]
[1736346108959,1.30273606,95349.0,95348.0,6.6e-07]
[1736346109160,1.33257606,95349.0,95348.0,6.6e-07]
[1736346109362,1.26391416,95349.0,95348.0,6.6e-07]
[1736346109778,1.30375242,95349.0,95348.0,6.6e-07]
[1736346109971,1.31275242,95349.0,95348.0,6.6e-07]
[1736346110150,1.15591242,95349.0,95348.0,6.6e-07]
[1736346110563,1.20375242,95349.0,95348.0,6.6e-07]
[1736346110770,1.21275242,95349.0,95348.0,6.6e-07]
[1736346110972,1.20775242,95349.0,95348.0,6.6e-07]
[1736346111181,0.99799742,95349.0,95348.0,6.6e-07]
[1736346111450,0.98899742,95349.0,95348.0,6.6e-07]
[1736346111718,0.99299742,95349.0,95348.0,6.6e-07]
[1736346112206,0.93615742,95349.0,95348.0,0.07600066]
[1736346112468,0.88869766,95349.0,95348.0,0.07600066]
[1736346112709,0.88469766,95349.0,95348.0,0.07600066]
[1736346112947,0.88569766,95349.0,95348.0,0.07600066]
[1736346113642,0.88569766,95349.0,95348.0,0.08542246]
[1736346113892,0.82885766,95349.0,95348.0,0.08542246]
[1736346114124,0.89469766,95349.0,95348.0,0.08542246]
[1736346114376,0.88469766,95349.0,95348.0,0.08542246]
[1736346114585,0.88669766,95349.0,95348.0,0.08542246]
[1736346114803,0.88469766,95349.0,95348.0,0.08542246]
[1736346115039,0.88469766,95349.0,95348.0,0.18542246]
[1736346115278,0.88869766,95349.0,95348.0,0.18542246]
[1736346115504,0.88569766,95349.0,95348.0,0.18542246]
[1736346116005,0.88469766,95349.0,95348.0,0.18542246]
[1736346116253,0.88469766,95349.0,95348.0,0.18742246]
[1736346116493,0.98899742,95349.0,95348.0,0.08742246]
[1736346116981,0.98899742,95349.0,95348.0,0.07800066]
[1736346117739,0.98899742,95349.0,95348.0,0.07600066]
[1736346117963,0.98899742,95349.0,95348.0,0.07700066]
[1736346118392,0.98899742,95349.0,95348.0,0.07600066]
[1736346118628,0.98999742,95349.0,95348.0,0.07600066]
[1736346118889,0.98999742,95349.0,95348.0,6.6e-07]
[1736346119105,0.98999742,95349.0,95348.0,0.00100066]
[1736346120365,0.98899742,95349.0,95348.0,0.00100066]
[1736346120607,0.98999742,95349.0,95348.0,0.00100066]
[1736346121015,0.98899742,95349.0,95348.0,6.6e-07]
[1736346121219,0.99099742,95349.0,95348.0,6.6e-07]
[1736346121424,0.99199742,95349.0,95348.0,6.6e-07]
[1736346122050,0.99099742,95349.0,95348.0,6.6e-07]
[1736346124258,1.07249742,95349.0,95348.0,6.6e-07]
[1736346124990,1.07349742,95349.0,95348.0,6.6e-07]
[1736346125234,0.99199742,95349.0,95348.0,6.6e-07]
[1736346125475,0.98999742,95349.0,95348.0,6.6e-07]
[1736346125686,0.98899742,95349.0,95348.0,6.6e-07]
[1736346125859,0.93215742,95349.0,95348.0,6.6e-07]
[1736346126094,0.99199742,95349.0,95348.0,6.6e-07]
[1736346126303,0.98899742,95349.0,95348.0,6.6e-07]
[1736346126504,0.98899742,95349.0,95348.0,0.00975735]
[1736346126705,0.99399742,95349.0,95348.0,6.6e-07]
[1736346126880,0.99099742,95349.0,95348.0,6.6e-07]
[1736346127581,0.98899742,95349.0,95348.0,6.6e-07]
[1736346127857,0.98999742,95349.0,95348.0,6.6e-07]
[1736346129957,1.08999742,95349.0,95348.0,6.6e-07]
[1736346130380,1.09399742,95349.0,95348.0,6.6e-07]
[1736346131011,1.09299742,95349.0,95348.0,6.6e-07]
[1736346131178,0.98899742,95349.0,95348.0,6.6e-07]
[1736346131384,0.99099742,95349.0,95348.0,6.6e-07]
[1736346131607,0.94115742,95349.0,95348.0,6.6e-07]
[1736346131828,0.99799742,95349.0,95348.0,6.6e-07]
[1736346133988,0.94115742,95349.0,95348.0,6.6e-07]
[1736346134752,0.89369766,95349.0,95348.0,0.10609859]
[1736346134997,0.83685766,95349.0,95348.0,0.10000066]
[1736346135246,0.89369766,95349.0,95348.0,0.10609859]
[1736346136012,0.88669766,95349.0,95348.0,0.10609859]
[1736346136246,0.98899742,95349.0,95348.0,6.6e-07]
[1736346136509,0.98899742,95349.0,95348.0,0.00100066]
[1736346137002,0.98899742,95349.0,95348.0,6.6e-07]
[1736346137689,0.98999742,95349.0,95348.0,6.6e-07]
[1736346138152,0.98899742,95349.0,95348.0,6.6e-07]
[1736346139198,0.99599742,95349.0,95348.0,6.6e-07]
[1736346139426,0.99699742,95349.0,95348.0,6.6e-07]
[1736346139696,0.98999742,95349.0,95348.0,6.6e-07]
[1736346139947,0.98899742,95349.0,95348.0,6.6e-07]
[1736346140463,0.98999742,95349.0,95348.0,6.6e-07]
[1736346140670,0.98899742,95349.0,95348.0,6.6e-07]
[1736346141088,0.98999742,95349.0,95348.0,6.6e-07]
[1736346141534,0.99399742,95349.0,95348.0,6.6e-07]
[1736346141875,0.98999742,95349.0,95348.0,6.6e-07]
[1736346142357,1.17879742,95349.0,95348.0,6.6e-07]
[1736346143494,1.21146739,95349.0,95348.0,6.6e-07]
[1736346143720,1.58156914,95349.0,95348.0,6.6e-07]
[1736346145763,1.73156914,95349.0,95348.0,6.6e-07]
[1736346145962,1.73056914,95349.0,95348.0,6.6e-07]
[1736346146413,1.72856914,95349.0,95348.0,6.6e-07]
[1736346146791,1.72356914,95349.0,95348.0,6.6e-07]
[1736346147171,1.72756914,95349.0,95348.0,6.6e-07]
[1736346147930,1.73656914,95349.0,95348.0,6.6e-07]
[1736346149581,1.73653643,95349.0,95348.0,6.6e-07]
[1736346150443,1.55389917,95349.0,95348.0,6.6e-07]
[1736346151102,1.29225917,95349.0,95348.0,6.6e-07]
[1736346151525,1.34909917,95349.0,95348.0,6.6e-07]
[1736346152164,0.94515742,95349.0,95348.0,6.6e-07]
[1736346152397,0.93215742,95349.0,95348.0,6.6e-07]
[1736346152607,0.99199742,95349.0,95348.0,6.6e-07]
[1736346152816,0.99199742,95349.0,95348.0,0.10000066]
[1736346152817,1.00099742,95349.0,95348.0,0.10000066]
[1736346153025,0.98899742,95349.0,95348.0,0.10000066]
[1736346153239,0.98899742,95349.0,95348.0,0.10608879]
[1736346153456,0.98999742,95349.0,95348.0,0.10608879]
[1736346153681,0.98999742,95349.0,95348.0,0.10000066]
[1736346153892,0.98999742,95349.0,95348.0,6.6e-07]
[1736346154102,0.98999742,95349.0,95348.0,0.10000066]
[1736346154103,0.98899742,95349.0,95348.0,0.10000066]
[1736346154746,0.94115742,95349.0,95348.0,0.10000066]
[1736346155043,0.98899742,95349.0,95348.0,0.10000066]
[1736346155259,0.99199742,95349.0,95348.0,0.10000066]
[1736346155469,0.98899742,95349.0,95348.0,0.10000066]
[1736346155880,0.99099742,95349.0,95348.0,0.10000066]
[1736346156035,0.98899742,95349.0,95348.0,0.10000066]
[1736346156261,0.98899742,95349.0,95348.0,6.6e-07]
[1736346156473,0.98999742,95349.0,95348.0,0.10000066]
[1736346157251,0.98999742,95349.0,95348.0,0.10100066]
[1736346157581,0.98999742,95349.0,95348.0,0.00608879]
[1736346157784,0.98999742,95349.0,95348.0,0.10608879]
[1736346157989,0.98999742,95349.0,95348.0,0.10708879]
[1736346159308,0.98999742,95349.0,95348.0,0.10608879]
[1736346159867,0.98999742,95349.0,95348.0,0.10708879]
[1736346160277,0.98899742,95349.0,95348.0,0.10708879]
[1736346160806,0.98899742,95349.0,95348.0,0.10100066]
[1736346161027,0.98999742,95349.0,95348.0,0.10100066]
[1736346161241,0.98999742,95349.0,95348.0,0.00100066]
[1736346161882,0.98899742,95349.0,95348.0,0.00100066]
[1736346164949,0.93215742,95349.0,95348.0,0.00100066]
[1736346165153,0.98899742,95349.0,95348.0,0.00100066]
[1736346165710,0.98899742,95349.0,95348.0,0.00608879]
[1736346165914,0.98899742,95349.0,95348.0,6.6e-07]
[1736346166319,0.98899742,95349.0,95348.0,0.00100066]
[1736346166865,0.98899742,95349.0,95348.0,6.6e-07]
[1736346167209,0.98899742,95349.0,95348.0,0.00100066]
[1736346168568,0.98899742,95349.0,95348.0,6.6e-07]
[1736346171536,0.99199742,95349.0,95348.0,6.6e-07]
[1736346175155,0.93515742,95349.0,95348.0,6.6e-07]
[1736346175370,0.99199742,95349.0,95348.0,6.6e-07]
[1736346176687,0.93515742,95349.0,95348.0,6.6e-07]
[1736346176890,1.20175242,95349.0,95348.0,6.6e-07]
[1736346177028,0.99199742,95349.0,95348.0,6.6e-07]
[1736346183467,1.07139742,95349.0,95348.0,6.6e-07]
[1736346190534,0.99199742,95349.0,95348.0,6.6e-07]
[1736346191014,0.99195742,95349.0,95348.0,6.6e-07]
[1736346191596,0.93515742,95349.0,95348.0,6.6e-07]
[1736346191815,0.99195742,95349.0,95348.0,6.6e-07]
[1736346194441,1.1329524,95349.0,95348.0,6.6e-07]
[1736346194818,0.99195742,95349.0,95348.0,6.6e-07]
[1736346195930,1.1329524,95349.0,95348.0,6.6e-07]
[1736346196571,1.33991921,95349.0,95348.0,6.6e-07]
[1736346198911,1.52848445,95349.0,95348.0,6.6e-07]
[1736346203307,1.13329229,95349.0,95348.0,6.6e-07]
[1736346205210,1.02899253,95349.0,95348.0,0.10000066]
[1736346205412,0.88765766,95349.0,95348.0,0.10000066]
[1736346205866,0.88765766,95349.0,95348.0,0.10607436]
[1736346206067,0.88765766,95349.0,95348.0,0.10000066]
[1736346206523,0.88465766,95349.0,95348.0,0.10200066]
[1736346206760,0.88465766,95349.0,95348.0,0.10907436]
[1736346207023,0.88465766,95349.0,95348.0,0.10300066]
[1736346209009,0.88465766,95349.0,95348.0,0.10907436]
[1736346216346,0.88465766,95349.0,95348.0,0.25907436]
[1736346217817,0.82785766,95349.0,95348.0,0.25907436]
[1736346220564,0.82773143,95349.0,95348.0,0.25907436]
[1736346220781,0.41008268,95349.0,95348.0,0.33867436]
[1736346221009,0.31178923,95349.0,95348.0,0.61427412]
[1736346221219,0.31912433,95368.0,95367.0,0.209716]
[1736346221429,0.31912433,95368.0,95367.0,0.539316]
[1736346221859,0.31912433,95368.0,95367.0,0.59245184]
[1736346222515,0.31912433,95387.0,95386.0,0.459674]
[1736346222941,0.31912433,95387.0,95386.0,0.46448674]
[1736346223682,0.31912433,95387.0,95386.0,0.46459349]
[1736346224951,0.32712433,95387.0,95386.0,0.46559349]
[1736346225371,0.32512433,95387.0,95386.0,0.46559349]
[1736346225755,0.32512433,95387.0,95386.0,0.46759349]
[1736346227395,0.31912433,95387.0,95386.0,0.46659349]
[1736346228021,0.32512433,95387.0,95386.0,0.46659349]
[1736346228596,0.006,95387.0,95386.0,0.46659349]
[1736346228850,0.05676,95402.0,95387.0,0.25]
[1736346229204,0.31912433,95408.0,95387.0,0.35]
[1736346229429,0.37588433,95408.0,95387.0,0.45761153]
[1736346229751,0.31912433,95408.0,95387.0,0.55761153]
[1736346231195,0.31912433,95408.0,95387.0,0.55861153]
[1736346231393,0.31912433,95408.0,95387.0,0.57966155]
[1736346231616,0.31912433,95408.0,95387.0,0.57866155]
[1736346232008,0.0011708,95388.0,95387.0,0.58366155]
[1736346232802,0.0011708,95388.0,95387.0,0.46261153]
[1736346233012,0.0011708,95388.0,95387.0,0.56261153]
[1736346233872,0.0011708,95388.0,95387.0,0.46461153]
[1736346234090,0.0011708,95388.0,95387.0,0.56461153]
[1736346234311,0.0011708,95388.0,95387.0,0.56261153]
[1736346234533,0.0021708,95388.0,95387.0,0.57161153]
[1736346236806,0.0021708,95388.0,95387.0,0.67591129]
[1736346239203,0.0021708,95388.0,95387.0,0.57591129]
[1736346239681,0.0021708,95388.0,95387.0,0.67591129]
[1736346242729,0.0021708,95388.0,95387.0,0.26881153]
[1736346242954,0.0021708,95388.0,95387.0,0.11881153]
[1736346243165,0.0021708,95388.0,95387.0,0.01881153]
[1736346243388,0.55975489,95388.0,95387.0,0.11881153]
[1736346243601,0.60675489,95388.0,95387.0,0.01881153]
[1736346243825,0.60575489,95388.0,95387.0,0.005]
[1736346244453,0.209672,95387.0,95386.0,0.00010675]
[1736346244663,0.31397176,95387.0,95386.0,0.00010675]
[1736346245727,0.37173176,95387.0,95386.0,0.00010675]
[1736346246169,0.37073176,95387.0,95386.0,0.00010675]
[1736346246560,0.37173176,95387.0,95386.0,0.00010675]
[1736346246774,0.76595609,95387.0,95386.0,0.00010675]
[1736346247005,0.76995609,95387.0,95386.0,0.00010675]
[1736346247431,0.76595609,95387.0,95386.0,0.00010675]
[1736346247702,0.31912433,95366.0,95364.0,0.1]
[1736346247924,0.31912433,95366.0,95353.0,0.15]
[1736346247925,0.31912433,95366.0,95365.0,0.1]
[1736346248147,0.16105976,95365.0,95356.0,0.15]
[1736346248361,0.10429976,95364.0,95356.0,0.15]
[1736346248541,0.209734,95359.0,95356.0,0.15]
[1736346248739,0.10429976,95358.0,95357.0,0.1]
[1736346249193,0.10429976,95358.0,95355.0,0.0001528]
[1736346249789,0.10429976,95358.0,95357.0,0.1]
[1736346251641,0.42342409,95358.0,95357.0,0.1]
[1736346252268,0.42342409,95358.0,95357.0,0.001]
[1736346252636,0.42342409,95358.0,95357.0,0.101]
[1736346253465,0.42342409,95358.0,95357.0,0.102]
[1736346253853,0.42342409,95358.0,95357.0,0.001]
[1736346254003,0.42342409,95358.0,95357.0,0.1]
[1736346254418,0.42942409,95358.0,95355.0,0.0001528]
[1736346254627,0.39432433,95356.0,95355.0,0.0001528]
[1736346254828,0.49862409,95356.0,95355.0,0.0001528]
[1736346256078,0.49962409,95356.0,95355.0,0.0001528]
[1736346257506,0.55638409,95356.0,95355.0,0.0001528]
[1736346258134,0.55538409,95356.0,95355.0,0.0001528]
[1736346258511,0.55638409,95356.0,95355.0,0.0001528]
[1736346258942,0.55938409,95356.0,95355.0,0.0001528]
[1736346261643,0.55938409,95356.0,95355.0,0.0311528]
[1736346261871,0.60488409,95356.0,95355.0,0.0311528]
[1736346262811,0.60188409,95356.0,95355.0,0.0311528]
[1736346263036,0.60488409,95356.0,95355.0,0.0311528]
[1736346263489,0.60388409,95356.0,95355.0,0.0311528]
[1736346263927,0.60488409,95356.0,95355.0,0.0311528]
[1736346273138,0.54812409,95356.0,95355.0,0.0311528]
[1736346273345,0.60488409,95356.0,95355.0,0.0311528]
[1736346278116,0.48418409,95356.0,95355.0,0.0311528]
[1736346280624,0.84048385,95356.0,95355.0,0.0311528]
[1736346280839,0.73618409,95356.0,95355.0,0.0311528]
[1736346281268,0.76884159,95356.0,95355.0,0.0311528]
[1736346281903,0.64584159,95356.0,95355.0,0.0311528]
[1736346282113,0.64284159,95356.0,95355.0,0.0311528]
[1736346282297,0.61018409,95356.0,95355.0,0.0311528]
[1736346282505,0.61818409,95356.0,95355.0,0.0311528]
[1736346282653,0.62724397,95356.0,95355.0,0.0311528]
[1736346282866,0.61924397,95356.0,95355.0,0.0311528]
[1736346283074,0.62224397,95356.0,95355.0,0.0311528]
[1736346283271,0.65490736,95356.0,95355.0,0.0311528]
[1736346283474,0.62224397,95356.0,95355.0,0.0311528]
[1736346283679,0.61924397,95356.0,95355.0,0.0311528]
[1736346284113,0.65490378,95356.0,95355.0,0.0311528]
[1736346284314,0.62224397,95356.0,95355.0,0.0311528]
[1736346284511,0.61924397,95356.0,95355.0,0.0311528]
[1736346284888,0.64224397,95356.0,95355.0,0.0311528]
[1736346285091,0.67489808,95356.0,95355.0,0.0311528]
[1736346285304,0.68289808,95356.0,95355.0,0.0311528]
[1736346285892,0.68589808,95356.0,95355.0,0.0311528]
[1736346286560,0.68289808,95356.0,95355.0,0.0311528]
[1736346286855,0.68589808,95356.0,95355.0,0.0311528]
[1736346287510,0.68289808,95356.0,95355.0,0.0311528]
[1736346287693,0.68689808,95356.0,95355.0,0.0311528]
[1736346289397,0.67889808,95356.0,95355.0,0.0311528]
[1736346290010,0.68789808,95356.0,95355.0,0.0311528]
[1736346291768,0.36877375,95356.0,95355.0,0.0311528]
[1736346291932,0.33611964,95356.0,95355.0,0.0311528]
[1736346292135,0.36879315,95356.0,95355.0,0.0311528]
[1736346293353,0.31311964,95356.0,95355.0,0.0311528]
[1736346296488,0.25639964,95356.0,95355.0,0.0311528]
[1736346296690,0.11729976,95356.0,95355.0,0.0311528]
[1736346296921,0.17401976,95356.0,95355.0,0.0311528]
[1736346298295,0.11729976,95356.0,95355.0,0.1311528]
[1736346298492,0.17401976,95356.0,95355.0,0.1311528]
[1736346298699,0.17401976,95356.0,95355.0,0.13554942]
[1736346299329,0.17001976,95356.0,95355.0,0.13554942]
[1736346299610,0.16401976,95356.0,95355.0,0.13554942]
[1736346300055,0.16101976,95356.0,95355.0,0.13554942]
[1736346300301,0.009,95356.0,95355.0,0.28554942]
[1736346300523,0.09425934,95368.0,95367.0,0.687416]
[1736346300864,0.28105737,95383.0,95372.0,0.35]
[1736346300865,0.14856611,95373.0,95372.0,0.35]
[1736346301107,0.28105737,95383.0,95374.0,0.473]
[1736346301108,0.13076381,95375.0,95374.0,0.473]
[1736346301345,0.02140952,95406.0,95387.0,0.682672]
[1736346301590,0.18846373,95419.0,95418.0,0.459604]
[1736346301831,0.18846373,95419.0,95418.0,0.659604]
[1736346302048,0.05,95440.0,95424.0,0.30959]
[1736346302291,0.05,95440.0,95424.0,0.45959]
[1736346302543,0.05,95440.0,95424.0,0.46390318]
[1736346302781,0.00032306,95425.0,95424.0,0.31390318]
[1736346303511,0.00032306,95425.0,95424.0,0.56390318]
[1736346303761,0.00032306,95425.0,95424.0,0.66490318]
[1736346303997,0.00032306,95425.0,95424.0,0.79220294]
[1736346304242,0.00032306,95425.0,95424.0,0.8012482]
[1736346304746,0.00032306,95425.0,95424.0,0.8062482]
[1736346305264,0.00032306,95425.0,95424.0,0.8012482]
[1736346305524,0.00032306,95425.0,95424.0,0.8032482]
[1736346305783,0.00011813,95427.0,95426.0,0.559586]
[1736346306244,0.00011813,95427.0,95426.0,0.56432807]
[1736346307303,0.00111813,95427.0,95426.0,0.56932807]
[1736346307524,0.00111813,95427.0,95426.0,0.46932807]
[1736346307734,0.00111813,95427.0,95426.0,0.36932807]
[1736346307951,0.00111813,95427.0,95426.0,0.46932807]
[1736346308163,0.00111813,95427.0,95426.0,0.31932807]
[1736346308436,0.00111813,95427.0,95426.0,0.10974207]
[1736346308660,0.16113789,95427.0,95426.0,0.00474207]
[1736346308871,0.16113789,95427.0,95426.0,0.10774207]
[1736346309046,0.16213789,95427.0,95426.0,0.112]
[1736346309247,0.10541789,95427.0,95426.0,0.11374207]
[1736346309489,0.16209789,95427.0,95426.0,0.11374207]
[1736346309696,0.16109789,95427.0,95426.0,0.10574207]
[1736346310100,0.16109789,95427.0,95426.0,0.10674207]
[1736346310307,0.05679813,95427.0,95426.0,0.10674207]
[1736346310457,0.05679813,95427.0,95426.0,0.10774207]
[1736346311779,0.05679813,95427.0,95426.0,0.10674207]
[1736346312198,0.05679813,95427.0,95426.0,0.10774207]
[1736346312833,0.05679813,95427.0,95426.0,0.10574207]
[1736346313317,0.16109789,95427.0,95426.0,0.10474207]
[1736346313518,0.16109789,95427.0,95426.0,0.10574207]
[1736346313731,0.16109789,95427.0,95426.0,0.101]
[1736346314559,0.16109789,95427.0,95426.0,0.10574207]
[1736346315130,0.16109789,95427.0,95426.0,0.10674207]
[1736346315768,0.00011813,95427.0,95426.0,0.31632807]
[1736346316494,0.00011813,95427.0,95426.0,0.46632807]
[1736346316915,0.02579813,95432.0,95426.0,0.46632807]
[1736346317122,0.02579813,95432.0,95428.0,0.209582]
[1736346317329,0.02579813,95432.0,95431.0,0.1]
[1736346317659,0.02579813,95432.0,95431.0,0.104736]
[1736346318436,0.05664,95437.0,95436.0,0.1]
[1736346318633,0.05,95440.0,95439.0,0.1]
[1736346318896,0.21093976,95440.0,95439.0,0.1]
[1736346319092,0.21093976,95440.0,95439.0,0.10472628]
[1736346319305,0.10664,95440.0,95439.0,0.10472628]
[1736346319528,0.05005089,95440.0,95439.0,0.10590785]
[1736346321548,0.05005089,95440.0,95439.0,0.25690785]
[1736346321961,0.05005089,95440.0,95439.0,0.63597227]
[1736346322160,0.05005089,95440.0,95439.0,0.3656881]
[1736346322363,0.05005089,95440.0,95439.0,0.3676881]
[1736346322958,0.05005089,95440.0,95439.0,0.3656881]
[1736346323327,0.05005089,95440.0,95439.0,0.3696881]
[1736346324452,0.05005089,95440.0,95439.0,0.78446932]
[1736346324663,0.05005089,95440.0,95439.0,0.78046932]
[1736346324914,0.05005089,95440.0,95439.0,0.78446932]
[1736346325121,0.05105089,95440.0,95439.0,0.3786881]
[1736346325529,0.05105089,95440.0,95439.0,0.79346932]
[1736346325936,0.05105089,95440.0,95439.0,0.3786881]
[1736346327616,0.05005089,95440.0,95439.0,0.3696881]
[1736346327767,0.05105089,95440.0,95439.0,0.3776881]
[1736346328290,0.05005089,95440.0,95439.0,0.3656881]
[1736346328646,0.05105089,95440.0,95439.0,0.3996881]
[1736346329046,0.05105089,95440.0,95439.0,0.3976881]
[1736346329220,0.05664,95459.0,95444.0,0.1]
[1736346329427,0.05664,95459.0,95444.0,0.35104751]
[1736346329586,0.05664,95459.0,95444.0,0.35472021]
[1736346331688,0.05664,95459.0,95444.0,0.36372021]
[1736346332093,0.0001708,95461.0,95444.0,0.36672021]
[1736346332469,0.0001708,95461.0,95444.0,0.36372021]
[1736346332904,0.0001708,95461.0,95444.0,0.36672021]
[1736346333103,0.05,95460.0,95444.0,0.36672021]
[1736346333540,0.05,95460.0,95444.0,0.49401997]
[1736346333875,0.05,95460.0,95444.0,0.59401997]
[1736346334625,0.05,95460.0,95444.0,0.59101997]
[1736346334804,0.05,95460.0,95444.0,0.59501997]
[1736346335415,0.05,95460.0,95444.0,0.59101997]
[1736346335617,0.05,95460.0,95444.0,0.59501997]
[1736346335836,0.05,95460.0,95444.0,0.58601997]
[1736346336409,0.05,95460.0,95444.0,0.57201997]
[1736346336786,0.05,95460.0,95444.0,0.56801997]
[1736346337660,0.05,95460.0,95444.0,0.55901997]
[1736346337869,0.05,95460.0,95444.0,0.56801997]
[1736346338117,0.05,95460.0,95444.0,0.56301997]
[1736346338517,0.05,95460.0,95444.0,0.56801997]
[1736346338939,0.0011708,95445.0,95444.0,0.57401997]
[1736346339276,0.0011708,95445.0,95444.0,0.56501997]
[1736346339492,0.0001708,95445.0,95444.0,0.55901997]
[1736346339695,0.0011708,95445.0,95444.0,0.88935459]
[1736346339895,0.05,95460.0,95459.0,0.1]
[1736346340334,0.05,95460.0,95459.0,0.254702]
[1736346341820,0.05,95460.0,95459.0,0.464216]
[1736346342415,0.05,95460.0,95459.0,0.57799549]
[1736346342864,0.0001708,95461.0,95460.0,0.273]
[1736346343077,0.0001708,95461.0,95460.0,0.57729976]
[1736346343283,0.0001708,95461.0,95460.0,0.58200055]
[1736346343702,8e-07,95461.0,95460.0,0.58200055]
[1736346343908,0.0001706,95483.0,95475.0,0.682478]
[1736346344079,0.0006798,95476.0,95475.0,0.682478]
[1736346344323,0.0006798,95476.0,95475.0,0.78677776]
[1736346344489,0.0006798,95476.0,95475.0,0.79146035]
[1736346345233,2e-07,95484.0,95483.0,0.659461]
[1736346345469,0.0757,95531.0,95514.0,0.559393]
[1736346345680,0.0757,95531.0,95514.0,0.76369276]
[1736346345886,0.00032332,95515.0,95514.0,0.79184308]
[1736346346098,0.00032332,95515.0,95514.0,0.80175188]
[1736346346817,0.00032332,95515.0,95514.0,0.67875188]
[1736346347030,0.00032332,95515.0,95514.0,0.57445212]
[1736346347239,0.00032332,95515.0,95514.0,1.08030141]
[1736346347458,0.00032332,95515.0,95514.0,0.57445212]
[1736346347862,0.00032332,95515.0,95514.0,0.88869281]
[1736346348433,0.00032332,95515.0,95514.0,0.57945212]
[1736346349424,0.00032332,95515.0,95514.0,0.58845212]
[1736346349707,0.00032332,95515.0,95514.0,0.57945212]
[1736346350373,0.00032332,95515.0,95514.0,0.58845212]
[1736346350798,0.00032332,95515.0,95514.0,0.57945212]
[1736346351003,0.00032332,95515.0,95514.0,0.46454332]
[1736346351548,0.00032332,95515.0,95514.0,0.46854332]
[1736346352179,0.00032332,95515.0,95514.0,0.46454332]
[1736346352633,0.00032332,95515.0,95514.0,0.46854332]
[1736346353015,0.06385901,95517.0,95516.0,0.359389]
[1736346353350,0.0566,95530.0,95517.0,0.25]
[1736346353782,0.0566,95530.0,95517.0,0.25514627]
[1736346354457,0.0001706,95532.0,95517.0,0.25514627]
[1736346355115,0.0496706,95518.0,95517.0,0.11414627]
[1736346355319,0.1062706,95518.0,95517.0,0.11414627]
[1736346355539,0.1062706,95518.0,95517.0,0.11714627]
[1736346356152,0.1888706,95518.0,95517.0,0.109]
[1736346356987,0.1888706,95518.0,95517.0,0.1]
[1736346357130,0.1888706,95518.0,95517.0,0.106]
[1736346357534,0.1888706,95518.0,95517.0,0.11214627]
[1736346358760,0.1393706,95518.0,95517.0,0.26214627]
[1736346358967,0.0827706,95518.0,95517.0,0.26214627]
[1736346360349,0.0001706,95518.0,95517.0,0.26214627]
[1736346362887,0.0001706,95518.0,95517.0,0.36214627]
[1736346363903,0.0001706,95518.0,95517.0,0.36114627]
[1736346364106,0.0001706,95518.0,95517.0,0.35814627]
[1736346364301,0.0001706,95518.0,95517.0,0.36714627]
[1736346364729,0.0001706,95518.0,95517.0,0.36414627]
[1736346365134,0.0001706,95518.0,95517.0,0.36814627]
[1736346367933,0.05624505,95540.0,95539.0,0.1]
[1736346368351,0.05624505,95540.0,95539.0,0.10511665]
[1736346368555,0.05624505,95540.0,95539.0,0.1]
[1736346368763,0.05624505,95540.0,95539.0,0.10511665]
[1736346370353,0.37019576,95540.0,95539.0,0.00711665]
[1736346370558,0.37019576,95540.0,95483.0,0.243261]
[1736346370559,0.20938,95520.0,95517.0,0.27853471]
[1736346370835,0.0765,95518.0,95517.0,0.1]
[1736346371041,0.18079976,95518.0,95517.0,0.1]
[1736346371255,0.209399,95512.0,95501.0,0.15]
[1736346371463,0.209399,95512.0,95504.0,0.00015272]
[1736346371906,0.22709976,95518.0,95504.0,0.00015272]
[1736346371907,0.288407,95508.0,95504.0,0.00015272]
[1736346372118,0.079,95508.0,95506.0,0.1]
[1736346372525,0.079,95508.0,95504.0,0.00015272]
[1736346372526,0.31370776,95507.0,95504.0,0.00015272]
[1736346373348,0.31370776,95507.0,95506.0,0.1]
[1736346374385,0.31470776,95507.0,95506.0,0.1]
[1736346374745,0.31370776,95507.0,95506.0,0.1]
[1736346374951,0.52311676,95507.0,95504.0,0.00015272]
[1736346375171,0.31370776,95507.0,95504.0,0.00015272]
[1736346375389,0.31470776,95507.0,95504.0,0.00015272]
[1736346375564,0.52411676,95507.0,95504.0,0.00015272]
[1736346375772,0.31470776,95507.0,95504.0,0.00015272]
[1736346376042,0.287013,95505.0,95504.0,0.00015272]
[1736346376216,0.3274,95490.0,95466.0,0.0212367]
[1736346376363,0.10326,95489.0,95470.0,0.209489]
[1736346376563,0.43169976,95488.0,95467.0,0.00491952]
[1736346376797,0.43169976,95488.0,95456.0,0.1]
[1736346376798,0.209454,95486.0,95466.0,0.15]
[1736346377000,0.209459,95484.0,95483.0,0.1]
[1736346377220,0.31375876,95484.0,95469.0,0.15]
[1736346377420,0.10534742,95483.0,95469.0,0.15]
[1736346377783,0.209463,95482.0,95470.0,0.00493666]
[1736346378103,0.10429976,95481.0,95470.0,0.00493666]
[1736346378767,0.3274,95479.0,95470.0,0.00493666]
[1736346378948,0.3274,95479.0,95465.0,0.0001704]
[1736346378949,0.31377176,95478.0,95476.0,0.1]
[1736346379181,0.10429976,95478.0,95476.0,0.1]
[1736346380747,0.001,95478.0,95477.0,0.459474]
[1736346381491,0.001,95478.0,95477.0,0.46440004]
[1736346381649,0.3274,95479.0,95477.0,0.46440004]
[1736346381650,0.3274,95479.0,95478.0,0.1]